[Event "Late-Titled-Tuesday-Blitz-October-10-2023"]
[Site "Chess.com"]
[Date "2023.10.10"]
[Round "5"]
[White "Fandorine"]
[Black "SpeedofLight0"]
[Result "1-0"]
[WhiteElo "2940"]
[BlackElo "3010"]
[TimeControl "180+1"]
[EndTime "14:52:45 PDT"]
[Termination "Fandorine won by resignation"]

1. g3 {[%clk 0:03:00.9]} 1... Nf6 {[%clk 0:02:27.1]} 2. Bg2 {[%clk 0:03:00]}
2... d5 {[%clk 0:02:26.1]} 3. c4 {[%clk 0:02:58.5]} 3... dxc4 {[%clk 0:02:24.7]}
4. Nf3 {[%clk 0:02:56.3]} 4... a6 {[%clk 0:02:24]} 5. O-O {[%clk 0:02:44.9]}
5... b5 {[%clk 0:02:21.2]} 6. Ne1 {[%clk 0:02:32.1]} 6... c6 {[%clk 0:02:19.4]}
7. d3 {[%clk 0:02:32.1]} 7... e6 {[%clk 0:02:14.1]} 8. Qc2 {[%clk 0:02:30.6]}
8... cxd3 {[%clk 0:02:08.9]} 9. Nxd3 {[%clk 0:02:31.5]} 9... Bb7 {[%clk
0:02:06.7]} 10. Rd1 {[%clk 0:02:31.4]} 10... Qc8 {[%clk 0:02:04.7]} 11. Bg5
{[%clk 0:01:58.8]} 11... Nbd7 {[%clk 0:02:01.6]} 12. Nd2 {[%clk 0:01:58.7]}
12... c5 {[%clk 0:01:58.8]} 13. Bxb7 {[%clk 0:01:58.2]} 13... Qxb7 {[%clk
0:01:59.7]} 14. Bxf6 {[%clk 0:01:54.5]} 14... gxf6 {[%clk 0:01:57.4]} 15. a4
{[%clk 0:01:54.6]} 15... Be7 {[%clk 0:01:42.4]} 16. Nf4 {[%clk 0:01:46.7]} 16...
f5 {[%clk 0:01:29.6]} 17. e4 {[%clk 0:01:35.9]} 17... fxe4 {[%clk 0:01:21.1]}
18. Nxe4 {[%clk 0:01:36.8]} 18... O-O {[%clk 0:01:18.4]} 19. Nd6 {[%clk
0:01:06.6]} 19... Qc6 {[%clk 0:01:09.9]} 20. axb5 {[%clk 0:01:06.3]} 20... axb5
{[%clk 0:01:10.6]} 21. Rxa8 {[%clk 0:01:06.8]} 21... Rxa8 {[%clk 0:01:10.3]} 22.
Nxf7 {[%clk 0:01:05.9]} 22... e5 {[%clk 0:00:46.1]} 23. Nd5 {[%clk 0:00:50]}
23... Re8 {[%clk 0:00:30.9]} 24. Qf5 {[%clk 0:00:41.1]} 24... Nf8 {[%clk
0:00:15.3]} 25. Nxe5 {[%clk 0:00:30.6]} 25... Qe6 {[%clk 0:00:15.6]} 26. Qh5
{[%clk 0:00:29.7]} 26... Bd6 {[%clk 0:00:13]} 27. Qxe8 {[%clk 0:00:20]} 27...
Qxe8 {[%clk 0:00:10]} 28. Nf6+ {[%clk 0:00:20.6]} 28... Kh8 {[%clk 0:00:10.6]}
29. Nxe8 {[%clk 0:00:21.2]} 29... Bxe5 {[%clk 0:00:11.3]} 30. b3 {[%clk
0:00:21.3]} 30... Ne6 {[%clk 0:00:08.7]} 31. Re1 {[%clk 0:00:20.8]} 31... Nd4
{[%clk 0:00:08.2]} 32. Kg2 {[%clk 0:00:19.4]} 32... Bb8 {[%clk 0:00:06.1]} 33.
Nf6 {[%clk 0:00:16.6]} 33... Kg7 {[%clk 0:00:05.8]} 34. Nd7 {[%clk 0:00:10.3]}
34... Bd6 {[%clk 0:00:06.2]} 35. Rd1 {[%clk 0:00:10.9]} 35... Kf7 {[%clk
0:00:05.8]} 36. b4 {[%clk 0:00:11.4]} 36... Ke6 {[%clk 0:00:03.1]} 37. Nxc5+
{[%clk 0:00:08.5]} 37... Ke5 {[%clk 0:00:03.1]} 38. f4+ {[%clk 0:00:07.6]} 38...
Kd5 {[%clk 0:00:02.6]} 39. Nb3 {[%clk 0:00:07.6]} 39... Kc4 {[%clk 0:00:02.2]}
40. Nxd4 {[%clk 0:00:07.7]} 40... Bxb4 {[%clk 0:00:02.6]} 41. Kf3 {[%clk
0:00:07.8]} 41... Bc3 {[%clk 0:00:02.9]} 42. Nxb5 {[%clk 0:00:07.6]} 42... Kxb5
{[%clk 0:00:03.8]} 43. Ke4 {[%clk 0:00:08.2]} 43... Kc4 {[%clk 0:00:04.2]} 44.
Rd5 {[%clk 0:00:08.8]} 44... Bf6 {[%clk 0:00:04.2]} 45. Rh5 {[%clk 0:00:09.7]}
45... h6 {[%clk 0:00:04.1]} 46. Rxh6 {[%clk 0:00:10.1]} 46... Bg7 {[%clk
0:00:05]} 47. Rh5 {[%clk 0:00:10.8]} 47... Bh6 {[%clk 0:00:05.9]} 48. Rxh6
{[%clk 0:00:11.2]} 1-0

[Event "Late-Titled-Tuesday-Blitz-October-10-2023"]
[Site "Chess.com"]
[Date "2023.10.10"]
[Round "5"]
[White "SchachmattTV_Tobi"]
[Black "UK_23"]
[Result "0-1"]
[WhiteElo "2541"]
[BlackElo "2387"]
[TimeControl "180+1"]
[EndTime "14:52:45 PDT"]
[Termination "UK_23 won by resignation"]

1. e4 {[%clk 0:02:37.9]} 1... e5 {[%clk 0:02:59.9]} 2. Bc4 {[%clk 0:02:32.2]}
2... Nf6 {[%clk 0:02:59.6]} 3. Nc3 {[%clk 0:02:29.6]} 3... Nc6 {[%clk
0:02:58.4]} 4. d3 {[%clk 0:02:29.2]} 4... Bb4 {[%clk 0:02:57.6]} 5. Ne2 {[%clk
0:02:28.5]} 5... d5 {[%clk 0:02:56.1]} 6. exd5 {[%clk 0:02:27.6]} 6... Nxd5
{[%clk 0:02:56.1]} 7. O-O {[%clk 0:02:27.3]} 7... Nxc3 {[%clk 0:02:56.4]} 8.
Nxc3 {[%clk 0:02:26]} 8... O-O {[%clk 0:02:55.3]} 9. Kh1 {[%clk 0:02:20.9]} 9...
Bxc3 {[%clk 0:02:19.5]} 10. bxc3 {[%clk 0:02:21.8]} 10... Qe7 {[%clk 0:02:17.1]}
11. f4 {[%clk 0:02:21.1]} 11... Be6 {[%clk 0:02:14.8]} 12. Bb5 {[%clk
0:02:13.2]} 12... exf4 {[%clk 0:02:02.3]} 13. Bxf4 {[%clk 0:02:14.1]} 13... Qc5
{[%clk 0:01:59.3]} 14. Bxc6 {[%clk 0:01:45.5]} 14... Qxc6 {[%clk 0:02:00.2]} 15.
c4 {[%clk 0:01:45.1]} 15... Rad8 {[%clk 0:01:52.3]} 16. Qh5 {[%clk 0:01:43.5]}
16... b6 {[%clk 0:01:48.3]} 17. Rae1 {[%clk 0:01:41.6]} 17... Rfe8 {[%clk
0:01:48.1]} 18. h3 {[%clk 0:01:32.3]} 18... f6 {[%clk 0:01:12.9]} 19. Kh2 {[%clk
0:01:30.5]} 19... Bf7 {[%clk 0:01:11.2]} 20. Qg4 {[%clk 0:01:25.7]} 20... Kf8
{[%clk 0:00:40.3]} 21. Qg3 {[%clk 0:01:25.5]} 21... Rd7 {[%clk 0:00:36.8]} 22.
Rxe8+ {[%clk 0:01:21.9]} 22... Bxe8 {[%clk 0:00:37.7]} 23. Re1 {[%clk
0:01:21.8]} 23... Bf7 {[%clk 0:00:38.1]} 24. Re3 {[%clk 0:01:06.5]} 24... a5
{[%clk 0:00:37.6]} 25. Qe1 {[%clk 0:00:55.7]} 25... Qc5 {[%clk 0:00:29.1]} 26.
Qg3 {[%clk 0:00:42.6]} 26... g5 {[%clk 0:00:19]} 27. d4 {[%clk 0:00:43.1]} 27...
gxf4 {[%clk 0:00:14.2]} 28. dxc5 {[%clk 0:00:43.7]} 28... fxg3+ {[%clk
0:00:14.3]} 29. Kxg3 {[%clk 0:00:44.2]} 29... bxc5 {[%clk 0:00:14.8]} 30. Ra3
{[%clk 0:00:44.5]} 30... Bxc4 {[%clk 0:00:13.8]} 31. Rxa5 {[%clk 0:00:45.1]}
31... Be6 {[%clk 0:00:14.4]} 32. Rxc5 {[%clk 0:00:45]} 32... Kf7 {[%clk
0:00:14.2]} 33. a4 {[%clk 0:00:45.1]} 33... Rd4 {[%clk 0:00:14]} 34. Rxc7+
{[%clk 0:00:44.7]} 34... Kg6 {[%clk 0:00:14.7]} 35. a5 {[%clk 0:00:44.9]} 35...
Ra4 {[%clk 0:00:14.8]} 36. Rc5 {[%clk 0:00:45.1]} 36... Ra2 {[%clk 0:00:14.6]}
37. Kf4 {[%clk 0:00:42.7]} 37... Kf7 {[%clk 0:00:13.3]} 38. Ke3 {[%clk
0:00:42.2]} 38... Ke7 {[%clk 0:00:13.6]} 39. Kd4 {[%clk 0:00:41.2]} 39... Kd6
{[%clk 0:00:14.2]} 40. g4 {[%clk 0:00:38.8]} 40... Ra4+ {[%clk 0:00:13.7]} 41.
c4 {[%clk 0:00:39.3]} 41... Ra1 {[%clk 0:00:11.5]} 42. Rb5 {[%clk 0:00:37.9]}
42... Rd1+ {[%clk 0:00:10.9]} 43. Kc3 {[%clk 0:00:35]} 43... Rc1+ {[%clk
0:00:11.2]} 44. Kd2 {[%clk 0:00:35.3]} 44... Rxc4 {[%clk 0:00:11.2]} 45. Kd3
{[%clk 0:00:32.1]} 45... Ra4 {[%clk 0:00:11.4]} 46. Rb6+ {[%clk 0:00:31]} 46...
Ke5 {[%clk 0:00:11.3]} 47. Rb5+ {[%clk 0:00:28.5]} 47... Bd5 {[%clk 0:00:11.7]}
48. Kc3 {[%clk 0:00:28]} 48... Ra3+ {[%clk 0:00:12.1]} 49. Kb4 {[%clk
0:00:27.9]} 49... Rb3+ {[%clk 0:00:09.4]} 50. Kc5 {[%clk 0:00:28.5]} 50... Rxb5+
{[%clk 0:00:09.3]} 51. Kxb5 {[%clk 0:00:29.4]} 51... Bg2 {[%clk 0:00:09.8]} 52.
h4 {[%clk 0:00:25]} 52... Kf4 {[%clk 0:00:08.4]} 53. g5 {[%clk 0:00:23.5]} 53...
fxg5 {[%clk 0:00:08.7]} 54. hxg5 {[%clk 0:00:24.4]} 54... Kxg5 {[%clk
0:00:09.6]} 0-1

[Event "Late-Titled-Tuesday-Blitz-October-10-2023"]
[Site "Chess.com"]
[Date "2023.10.10"]
[Round "5"]
[White "nitpicker"]
[Black "familijatop71"]
[Result "1-0"]
[WhiteElo "2272"]
[BlackElo "2147"]
[TimeControl "180+1"]
[EndTime "14:52:52 PDT"]
[Termination "nitpicker won by resignation"]

1. d4 {[%clk 0:02:57.7]} 1... Nf6 {[%clk 0:02:59]} 2. c4 {[%clk 0:02:57]} 2...
e5 {[%clk 0:02:59]} 3. dxe5 {[%clk 0:02:56.1]} 3... Ne4 {[%clk 0:02:59.6]} 4. a3
{[%clk 0:02:53]} 4... d6 {[%clk 0:02:55.9]} 5. Nf3 {[%clk 0:02:49.7]} 5... Nc6
{[%clk 0:02:54.1]} 6. e3 {[%clk 0:02:39.4]} 6... a5 {[%clk 0:02:45.1]} 7. Qc2
{[%clk 0:02:38.2]} 7... Nc5 {[%clk 0:02:42.7]} 8. exd6 {[%clk 0:02:34.8]} 8...
Bxd6 {[%clk 0:02:39.7]} 9. b3 {[%clk 0:01:57.5]} 9... b6 {[%clk 0:02:34.6]} 10.
Bb2 {[%clk 0:01:53.4]} 10... Bb7 {[%clk 0:02:30.3]} 11. Be2 {[%clk 0:01:49.2]}
11... Qe7 {[%clk 0:02:24.4]} 12. Nc3 {[%clk 0:01:47]} 12... O-O-O {[%clk
0:02:20.6]} 13. Nb5 {[%clk 0:01:45.2]} 13... Rhg8 {[%clk 0:02:03.9]} 14. O-O-O
{[%clk 0:01:27.5]} 14... Ne4 {[%clk 0:01:38]} 15. Rhf1 {[%clk 0:01:15.9]} 15...
f5 {[%clk 0:01:32.9]} 16. Kb1 {[%clk 0:01:15]} 16... g5 {[%clk 0:01:27.2]} 17.
h3 {[%clk 0:01:10.9]} 17... h5 {[%clk 0:01:19.9]} 18. Nfd4 {[%clk 0:01:08.4]}
18... Ne5 {[%clk 0:00:59.5]} 19. Nxf5 {[%clk 0:01:01.8]} 19... Qe6 {[%clk
0:00:50.9]} 20. Nfxd6+ {[%clk 0:01:00.6]} 20... Nxd6 {[%clk 0:00:49.3]} 21.
Nxd6+ {[%clk 0:00:43.4]} 21... Rxd6 {[%clk 0:00:48.4]} 22. Rxd6 {[%clk
0:00:34.9]} 22... Qxd6 {[%clk 0:00:48]} 23. Rd1 {[%clk 0:00:34.7]} 23... Qe6
{[%clk 0:00:45.6]} 24. f3 {[%clk 0:00:31.7]} 24... g4 {[%clk 0:00:42.2]} 25.
hxg4 {[%clk 0:00:30.3]} 25... hxg4 {[%clk 0:00:42.4]} 26. f4 {[%clk 0:00:30.5]}
26... Nd7 {[%clk 0:00:35.1]} 27. Qd2 {[%clk 0:00:17.5]} 27... Nc5 {[%clk
0:00:32.1]} 28. Ka2 {[%clk 0:00:15.9]} 28... Re8 {[%clk 0:00:30.6]} 29. Bd4
{[%clk 0:00:14.1]} 29... Bxg2 {[%clk 0:00:25.9]} 30. Bxc5 {[%clk 0:00:10.9]}
30... bxc5 {[%clk 0:00:23.5]} 31. Qxa5 {[%clk 0:00:10.9]} 31... Bb7 {[%clk
0:00:21]} 32. Rd3 {[%clk 0:00:08.7]} 32... g3 {[%clk 0:00:20.1]} 33. Bf1 {[%clk
0:00:06.6]} 33... g2 {[%clk 0:00:19]} 34. Bxg2 {[%clk 0:00:06.8]} 34... Bxg2
{[%clk 0:00:17.5]} 35. Qxc5 {[%clk 0:00:07.4]} 35... Bb7 {[%clk 0:00:16.3]} 36.
Qd4 {[%clk 0:00:06.7]} 36... Qe7 {[%clk 0:00:14.4]} 37. b4 {[%clk 0:00:06.3]}
37... Rd8 {[%clk 0:00:13.5]} 38. Qxd8+ {[%clk 0:00:05.2]} 38... Qxd8 {[%clk
0:00:13.3]} 39. Rxd8+ {[%clk 0:00:05.9]} 39... Kxd8 {[%clk 0:00:13.9]} 40. Kb2
{[%clk 0:00:06.4]} 40... Ke7 {[%clk 0:00:14.8]} 41. Kc3 {[%clk 0:00:06.8]} 41...
Kf6 {[%clk 0:00:15.4]} 42. Kd4 {[%clk 0:00:07.4]} 42... Bc6 {[%clk 0:00:14]} 43.
b5 {[%clk 0:00:07.4]} 43... Bb7 {[%clk 0:00:14.6]} 44. a4 {[%clk 0:00:07.9]}
44... Bc8 {[%clk 0:00:14.9]} 45. a5 {[%clk 0:00:08.1]} 45... Bb7 {[%clk
0:00:15.4]} 46. c5 {[%clk 0:00:07.1]} 46... Bc8 {[%clk 0:00:15]} 47. c6 {[%clk
0:00:07.5]} 47... Ke6 {[%clk 0:00:11.1]} 48. b6 {[%clk 0:00:07.7]} 48... cxb6
{[%clk 0:00:09.9]} 49. axb6 {[%clk 0:00:08]} 49... Kd6 {[%clk 0:00:10.4]} 50. b7
{[%clk 0:00:07.7]} 50... Bxb7 {[%clk 0:00:11.1]} 51. cxb7 {[%clk 0:00:07.2]}
51... Kc7 {[%clk 0:00:12]} 52. f5 {[%clk 0:00:07.4]} 1-0

[Event "Late-Titled-Tuesday-Blitz-October-10-2023"]
[Site "Chess.com"]
[Date "2023.10.10"]
[Round "5"]
[White "NateSolon"]
[Black "Flaccidmoves"]
[Result "1-0"]
[WhiteElo "2581"]
[BlackElo "2410"]
[TimeControl "180+1"]
[EndTime "14:52:55 PDT"]
[Termination "NateSolon won by checkmate"]

1. d4 {[%clk 0:03:00.9]} 1... Nf6 {[%clk 0:02:58.8]} 2. Bf4 {[%clk 0:03:00.6]}
2... g6 {[%clk 0:02:56.9]} 3. Nf3 {[%clk 0:02:57]} 3... Bg7 {[%clk 0:02:56.3]}
4. e3 {[%clk 0:02:55.4]} 4... O-O {[%clk 0:02:56]} 5. Be2 {[%clk 0:02:55.4]}
5... d6 {[%clk 0:02:55.9]} 6. h3 {[%clk 0:02:55.4]} 6... b6 {[%clk 0:02:47.5]}
7. O-O {[%clk 0:02:51.9]} 7... Bb7 {[%clk 0:02:47.9]} 8. c4 {[%clk 0:02:50.9]}
8... c5 {[%clk 0:02:41.8]} 9. Bh2 {[%clk 0:02:28.4]} 9... cxd4 {[%clk
0:02:36.8]} 10. Nxd4 {[%clk 0:02:28.4]} 10... Nc6 {[%clk 0:02:34.7]} 11. Bf3
{[%clk 0:02:20.6]} 11... Qd7 {[%clk 0:02:32.4]} 12. Nc3 {[%clk 0:02:17]} 12...
Rac8 {[%clk 0:02:21.2]} 13. b3 {[%clk 0:02:13.6]} 13... Nxd4 {[%clk 0:02:01.9]}
14. exd4 {[%clk 0:02:11.5]} 14... Bxf3 {[%clk 0:01:48.9]} 15. Qxf3 {[%clk
0:02:09.9]} 15... a6 {[%clk 0:01:32.2]} 16. a4 {[%clk 0:01:57.7]} 16... Rc7
{[%clk 0:01:17.9]} 17. Rad1 {[%clk 0:01:51.1]} 17... Rfc8 {[%clk 0:01:15.1]} 18.
Rfe1 {[%clk 0:01:50.2]} 18... h6 {[%clk 0:00:37.3]} 19. Rd3 {[%clk 0:01:46.9]}
19... Kh7 {[%clk 0:00:33.2]} 20. d5 {[%clk 0:01:29]} 20... Qf5 {[%clk
0:00:17.4]} 21. Qxf5 {[%clk 0:01:20.5]} 21... gxf5 {[%clk 0:00:18.3]} 22. Rf3
{[%clk 0:01:20.9]} 22... Kg6 {[%clk 0:00:17.5]} 23. Ne2 {[%clk 0:01:16.4]} 23...
Ne4 {[%clk 0:00:16.3]} 24. Nf4+ {[%clk 0:01:15.9]} 24... Kh7 {[%clk 0:00:16.6]}
25. Nh5 {[%clk 0:01:12.6]} 25... Bc3 {[%clk 0:00:16.7]} 26. Rxe4 {[%clk
0:01:11.1]} 26... fxe4 {[%clk 0:00:16.3]} 27. Rxc3 {[%clk 0:01:11.3]} 27... Kg6
{[%clk 0:00:13.9]} 28. Nf4+ {[%clk 0:01:09.5]} 28... Kf5 {[%clk 0:00:13.8]} 29.
g4+ {[%clk 0:01:09.7]} 29... Kf6 {[%clk 0:00:13.4]} 30. Re3 {[%clk 0:01:05]}
30... b5 {[%clk 0:00:13.7]} 31. axb5 {[%clk 0:01:03.7]} 31... axb5 {[%clk
0:00:14.6]} 32. Rxe4 {[%clk 0:01:02.8]} 32... bxc4 {[%clk 0:00:14.1]} 33. bxc4
{[%clk 0:01:03.7]} 33... Rxc4 {[%clk 0:00:14.3]} 34. Nh5+ {[%clk 0:01:04.2]}
34... Kg5 {[%clk 0:00:09.1]} 35. Rxe7 {[%clk 0:01:00.8]} 35... R8c7 {[%clk
0:00:09.1]} 36. Rxc7 {[%clk 0:00:59.2]} 36... Rxc7 {[%clk 0:00:10]} 37. Bxd6
{[%clk 0:00:59.1]} 37... Rd7 {[%clk 0:00:09.8]} 38. Bf4+ {[%clk 0:00:59.4]}
38... Kh4 {[%clk 0:00:09.6]} 39. Nf6 {[%clk 0:00:49.9]} 39... Rb7 {[%clk
0:00:07.9]} 40. Kg2 {[%clk 0:00:48.3]} 40... Rb3 {[%clk 0:00:07.4]} 41. d6
{[%clk 0:00:41.5]} 41... Rd3 {[%clk 0:00:06.6]} 42. d7 {[%clk 0:00:40.3]} 42...
h5 {[%clk 0:00:06.2]} 43. Bc7 {[%clk 0:00:34.4]} 43... hxg4 {[%clk 0:00:04.4]}
44. hxg4 {[%clk 0:00:35.3]} 44... Kg5 {[%clk 0:00:03.3]} 45. d8=Q {[%clk
0:00:35.5]} 45... Rxd8 {[%clk 0:00:02.9]} 46. Bxd8 {[%clk 0:00:36.4]} 46... Kf4
{[%clk 0:00:02.4]} 47. f3 {[%clk 0:00:34.8]} 47... Kg5 {[%clk 0:00:03.3]} 48.
Kg3 {[%clk 0:00:34.7]} 48... Kg6 {[%clk 0:00:03.4]} 49. f4 {[%clk 0:00:35]}
49... Kg7 {[%clk 0:00:03.5]} 50. f5 {[%clk 0:00:35]} 50... Kh8 {[%clk
0:00:02.9]} 51. Ne4 {[%clk 0:00:35.2]} 51... Kg7 {[%clk 0:00:03.5]} 52. Bf6+
{[%clk 0:00:34.4]} 52... Kh6 {[%clk 0:00:03.8]} 53. Kf4 {[%clk 0:00:34.9]} 53...
Kh7 {[%clk 0:00:04]} 54. Ke5 {[%clk 0:00:34.2]} 54... Kh6 {[%clk 0:00:04.2]} 55.
Kd6 {[%clk 0:00:34]} 55... Kh7 {[%clk 0:00:04.3]} 56. Ke7 {[%clk 0:00:34.4]}
56... Kh6 {[%clk 0:00:05]} 57. Kxf7 {[%clk 0:00:33.2]} 57... Kh7 {[%clk
0:00:05.9]} 58. Bd4 {[%clk 0:00:30]} 58... Kh6 {[%clk 0:00:06.8]} 59. g5+ {[%clk
0:00:29.7]} 59... Kh7 {[%clk 0:00:07.7]} 60. g6+ {[%clk 0:00:29.3]} 60... Kh6
{[%clk 0:00:08.6]} 61. g7 {[%clk 0:00:27.6]} 61... Kh5 {[%clk 0:00:09.5]} 62.
g8=Q {[%clk 0:00:26.1]} 62... Kh4 {[%clk 0:00:10.4]} 63. Qg5+ {[%clk 0:00:25.6]}
63... Kh3 {[%clk 0:00:11.1]} 64. Qg3# {[%clk 0:00:25.8]} 1-0

[Event "Late-Titled-Tuesday-Blitz-October-10-2023"]
[Site "Chess.com"]
[Date "2023.10.10"]
[Round "5"]
[White "MaxLeto"]
[Black "JoakimVonAnd"]
[Result "0-1"]
[WhiteElo "2498"]
[BlackElo "2682"]
[TimeControl "180+1"]
[EndTime "14:52:57 PDT"]
[Termination "JoakimVonAnd won on time"]

1. g4 {[%clk 0:02:56.1]} 1... d5 {[%clk 0:02:58.6]} 2. Bg2 {[%clk 0:02:56.3]}
2... Bxg4 {[%clk 0:02:58.6]} 3. c4 {[%clk 0:02:56.1]} 3... c6 {[%clk 0:02:57.8]}
4. Qb3 {[%clk 0:02:56.4]} 4... e6 {[%clk 0:02:49.3]} 5. Qxb7 {[%clk 0:02:52.9]}
5... Nd7 {[%clk 0:02:49]} 6. Nc3 {[%clk 0:02:42.7]} 6... Qc8 {[%clk 0:02:33.4]}
7. Qxc8+ {[%clk 0:02:06.2]} 7... Rxc8 {[%clk 0:02:32.6]} 8. d3 {[%clk
0:02:02.8]} 8... Ngf6 {[%clk 0:02:29.9]} 9. Nf3 {[%clk 0:02:01.2]} 9... Bd6
{[%clk 0:02:20.2]} 10. h3 {[%clk 0:01:56.1]} 10... Bh5 {[%clk 0:02:17.5]} 11.
Bd2 {[%clk 0:01:54.6]} 11... O-O {[%clk 0:02:11]} 12. Rg1 {[%clk 0:01:48.4]}
12... Rb8 {[%clk 0:02:05.9]} 13. O-O-O {[%clk 0:01:42]} 13... Rfc8 {[%clk
0:02:02.5]} 14. Nd4 {[%clk 0:01:15.9]} 14... Be5 {[%clk 0:01:55.7]} 15. Nf3
{[%clk 0:01:13]} 15... Bd6 {[%clk 0:01:43.7]} 16. Nd4 {[%clk 0:01:12.8]} 16...
Bc5 {[%clk 0:01:41.3]} 17. Nb3 {[%clk 0:00:28.3]} 17... Bxf2 {[%clk 0:01:39.4]}
18. Rgf1 {[%clk 0:00:28.9]} 18... Bg3 {[%clk 0:01:33]} 19. Bf3 {[%clk
0:00:25.4]} 19... Bg6 {[%clk 0:01:28.4]} 20. Na5 {[%clk 0:00:24.4]} 20... Bf5
{[%clk 0:01:20.1]} 21. e4 {[%clk 0:00:22.6]} 21... Bxh3 {[%clk 0:01:16.9]} 22.
Rh1 {[%clk 0:00:22.1]} 22... Bg4 {[%clk 0:01:03.3]} 23. Bxg4 {[%clk 0:00:21.8]}
23... Nxg4 {[%clk 0:01:03.9]} 24. Rhg1 {[%clk 0:00:22.7]} 24... Bc7 {[%clk
0:00:29.8]} 25. Nxc6 {[%clk 0:00:20.7]} 25... Nf2 {[%clk 0:00:30.2]} 26. Nxb8
{[%clk 0:00:12.6]} 26... Bxb8 {[%clk 0:00:28.5]} 27. Rdf1 {[%clk 0:00:05.6]}
27... Nxd3+ {[%clk 0:00:28.5]} 28. Kc2 {[%clk 0:00:06.2]} 28... dxc4 {[%clk
0:00:28.3]} 29. Bh6 {[%clk 0:00:05.8]} 29... Be5 {[%clk 0:00:28.4]} 30. Be3
{[%clk 0:00:05.1]} 30... a6 {[%clk 0:00:27]} 31. Nd1 {[%clk 0:00:04.3]} 31...
Rb8 {[%clk 0:00:26.2]} 32. Bd2 {[%clk 0:00:03.6]} 32... N7c5 {[%clk 0:00:16.8]}
33. Bc3 {[%clk 0:00:04]} 33... Bxc3 {[%clk 0:00:16.8]} 34. bxc3 {[%clk
0:00:03.8]} 34... Nxe4 {[%clk 0:00:16.2]} 35. Rg4 {[%clk 0:00:04.1]} 35... f5
{[%clk 0:00:15.7]} 36. Rh4 {[%clk 0:00:04]} 36... h6 {[%clk 0:00:09.2]} 37. Rg1
{[%clk 0:00:04.1]} 37... Kh7 {[%clk 0:00:08.4]} 38. Rgh1 {[%clk 0:00:03.9]}
38... a5 {[%clk 0:00:07.4]} 39. R1h3 {[%clk 0:00:03.4]} 39... a4 {[%clk
0:00:07.1]} 40. Rxd3 {[%clk 0:00:03.6]} 40... cxd3+ {[%clk 0:00:07.3]} 41. Kxd3
{[%clk 0:00:04.5]} 41... a3 {[%clk 0:00:06.5]} 42. Ne3 {[%clk 0:00:04.3]} 42...
Rb2 {[%clk 0:00:05.8]} 43. Nc4 {[%clk 0:00:04.1]} 43... Rxa2 {[%clk 0:00:06.4]}
44. Rh3 {[%clk 0:00:02.1]} 44... Nf2+ {[%clk 0:00:06.2]} 45. Kd4 {[%clk
0:00:02.4]} 45... Nxh3 {[%clk 0:00:07.1]} 46. Ke5 {[%clk 0:00:02.4]} 46... Re2+
{[%clk 0:00:06.9]} 47. Kd6 {[%clk 0:00:02.6]} 47... a2 {[%clk 0:00:07.8]} 0-1

[Event "Late-Titled-Tuesday-Blitz-October-10-2023"]
[Site "Chess.com"]
[Date "2023.10.10"]
[Round "5"]
[White "LeninGuerra"]
[Black "BeyondMadness"]
[Result "1-0"]
[WhiteElo "2617"]
[BlackElo "2318"]
[TimeControl "180+1"]
[EndTime "14:52:57 PDT"]
[Termination "LeninGuerra won on time"]

1. e4 {[%clk 0:02:57.5]} 1... c5 {[%clk 0:02:59.5]} 2. Nf3 {[%clk 0:02:51.4]}
2... d6 {[%clk 0:02:59.3]} 3. d4 {[%clk 0:02:48.8]} 3... cxd4 {[%clk 0:02:59.9]}
4. Nxd4 {[%clk 0:02:43.7]} 4... Nf6 {[%clk 0:03:00.2]} 5. Nc3 {[%clk 0:02:40]}
5... a6 {[%clk 0:03:00.6]} 6. Be2 {[%clk 0:02:38.4]} 6... e6 {[%clk 0:03:00.4]}
7. O-O {[%clk 0:02:37.9]} 7... Be7 {[%clk 0:03:00.2]} 8. a4 {[%clk 0:02:37.9]}
8... O-O {[%clk 0:02:59.3]} 9. Kh1 {[%clk 0:02:38.4]} 9... Qc7 {[%clk
0:02:59.3]} 10. f4 {[%clk 0:02:38.1]} 10... Nc6 {[%clk 0:02:58.9]} 11. Nb3
{[%clk 0:02:37.3]} 11... b6 {[%clk 0:02:57]} 12. Bf3 {[%clk 0:02:37.4]} 12...
Rb8 {[%clk 0:02:56.2]} 13. g4 {[%clk 0:02:37.6]} 13... Na5 {[%clk 0:02:54.6]}
14. g5 {[%clk 0:02:36.6]} 14... Nd7 {[%clk 0:02:53.6]} 15. Bg2 {[%clk
0:02:36.2]} 15... Bb7 {[%clk 0:02:50.2]} 16. Qg4 {[%clk 0:02:35.7]} 16... g6
{[%clk 0:02:39.7]} 17. Rf3 {[%clk 0:02:22.2]} 17... Rfe8 {[%clk 0:02:32.6]} 18.
h4 {[%clk 0:02:22]} 18... Bf8 {[%clk 0:02:28.7]} 19. h5 {[%clk 0:02:22]} 19...
Nxb3 {[%clk 0:02:16]} 20. cxb3 {[%clk 0:02:21.1]} 20... Nc5 {[%clk 0:02:16.4]}
21. Rh3 {[%clk 0:02:14.2]} 21... Nxb3 {[%clk 0:02:08.8]} 22. Rb1 {[%clk
0:02:05.2]} 22... d5 {[%clk 0:01:54.5]} 23. hxg6 {[%clk 0:01:49.7]} 23... fxg6
{[%clk 0:01:53.7]} 24. exd5 {[%clk 0:01:42]} 24... Nxc1 {[%clk 0:01:32.9]} 25.
Rxc1 {[%clk 0:01:41.5]} 25... exd5 {[%clk 0:01:31.2]} 26. Rd3 {[%clk 0:01:34.6]}
26... d4 {[%clk 0:01:21.8]} 27. Rxd4 {[%clk 0:01:31.6]} 27... Bg7 {[%clk
0:01:15]} 28. Qd7 {[%clk 0:00:57.9]} 28... Bxg2+ {[%clk 0:01:07.7]} 29. Kxg2
{[%clk 0:00:58.8]} 29... Re7 {[%clk 0:00:54.9]} 30. Qd5+ {[%clk 0:00:48.6]}
30... Kh8 {[%clk 0:00:53.7]} 31. Rc4 {[%clk 0:00:49.1]} 31... Qd7 {[%clk
0:00:47]} 32. Qxd7 {[%clk 0:00:47.5]} 32... Rxd7 {[%clk 0:00:46.7]} 33. Ne4
{[%clk 0:00:48]} 33... h6 {[%clk 0:00:39.4]} 34. gxh6 {[%clk 0:00:46.4]} 34...
Bxh6 {[%clk 0:00:38.9]} 35. Kf3 {[%clk 0:00:29.5]} 35... Rf8 {[%clk 0:00:36]}
36. Ng3 {[%clk 0:00:26]} 36... Rd3+ {[%clk 0:00:34.2]} 37. Kg4 {[%clk
0:00:25.7]} 37... Rb3 {[%clk 0:00:31]} 38. Rh1 {[%clk 0:00:25.7]} 38... Kg7
{[%clk 0:00:10.8]} 39. Rc7+ {[%clk 0:00:25.7]} 39... Rf7 {[%clk 0:00:10.6]} 40.
Rxf7+ {[%clk 0:00:24.6]} 40... Kxf7 {[%clk 0:00:11]} 41. Rxh6 {[%clk 0:00:24.5]}
41... Rxb2 {[%clk 0:00:11.3]} 42. Ne4 {[%clk 0:00:21.6]} 42... Rb4 {[%clk
0:00:10.8]} 43. Ng5+ {[%clk 0:00:21.8]} 43... Kg7 {[%clk 0:00:08.3]} 44. Rh7+
{[%clk 0:00:22.1]} 44... Kg8 {[%clk 0:00:08.6]} 45. Rb7 {[%clk 0:00:22.1]} 45...
Rxa4 {[%clk 0:00:07.6]} 46. Rxb6 {[%clk 0:00:22.1]} 46... Kg7 {[%clk 0:00:06.5]}
47. Rb7+ {[%clk 0:00:22.4]} 47... Kg8 {[%clk 0:00:06.4]} 48. Nh7 {[%clk
0:00:18.9]} 48... a5 {[%clk 0:00:05.1]} 49. Nf6+ {[%clk 0:00:19.3]} 49... Kf8
{[%clk 0:00:05]} 50. Kg5 {[%clk 0:00:19.7]} 50... Ra1 {[%clk 0:00:03.7]} 51.
Kxg6 {[%clk 0:00:19.5]} 51... Rg1+ {[%clk 0:00:03.3]} 52. Kf5 {[%clk 0:00:20.1]}
52... a4 {[%clk 0:00:02.5]} 53. Ra7 {[%clk 0:00:20.6]} 1-0